[Event "Titled Tuesday Blitz July 25 Early 2023"]
[White "Sariego Figueredo, Wilfredo"]
[Black "Semenenko, Dmytry"]
[WhiteFideId "3500080"]
[BlackFideId "14118645"]
[WhiteElo "2205"]
[BlackElo "2433"]
[Result "0-1"]
[Round "3"]
[TimeControl "180+2"]
[Date "2023.07.25"]
[WhiteClock "0:01:41"]
[BlackClock "0:01:05"]
[Board "225"]

1. d4 {[%clk 0:03:00]}  d5 {[%clk 0:02:59]} 2. Bf4 {[%clk 0:03:00]}  Nf6 {[%clk 0:02:59]} 3. e3 {[%clk 0:03:00]}  c5 {[%clk 0:02:59]} 4. c3 {[%clk 0:03:00]}  Nc6 {[%clk 0:02:59]} 5. Nd2 {[%clk 0:02:59]}  e6 {[%clk 0:02:59]} 6. Bd3 {[%clk 0:02:59]}  Bd6 {[%clk 0:02:59]} 7. Bg3 {[%clk 0:02:59]}  O-O {[%clk 0:02:57]} 8. Ngf3 {[%clk 0:02:59]}  b6 {[%clk 0:02:57]} 9. Ne5 {[%clk 0:02:58]}  Qc7 {[%clk 0:02:55]} 10. f4 {[%clk 0:02:58]}  cxd4 {[%clk 0:02:51]} 11. exd4 {[%clk 0:02:59]}  Nd7 {[%clk 0:02:45]} 12. O-O {[%clk 0:02:42]}  f6 {[%clk 0:02:38]} 13. Qh5 {[%clk 0:02:41]}  f5 {[%clk 0:02:29]} 14. Ndf3 {[%clk 0:02:41]}  Nf6 {[%clk 0:02:25]} 15. Qh3 {[%clk 0:02:41]}  Ne4 {[%clk 0:02:20]} 16. Bxe4 {[%clk 0:02:31]}  dxe4 {[%clk 0:02:19]} 17. Ng5 {[%clk 0:02:32]}  h6 {[%clk 0:02:15]} 18. Qh5 {[%clk 0:02:32]}  Bxe5 {[%clk 0:02:06]} 19. dxe5 {[%clk 0:02:27]}  hxg5 {[%clk 0:02:01]} 20. fxg5 {[%clk 0:02:27]}  g6 {[%clk 0:02:01]} 21. Qxg6+ {[%clk 0:02:24]}  Qg7 {[%clk 0:02:01]} 22. Qh5 {[%clk 0:02:24]}  Nxe5 {[%clk 0:01:55]} 23. Bxe5 {[%clk 0:02:16]}  Qxe5 {[%clk 0:01:55]} 24. g6 {[%clk 0:02:16]}  Qg7 {[%clk 0:01:53]} 25. g4 {[%clk 0:02:15]}  Ba6 {[%clk 0:01:51]} 26. Rf4 {[%clk 0:02:10]}  Rf6 {[%clk 0:01:45]} 27. gxf5 {[%clk 0:02:10]}  exf5 {[%clk 0:01:43]} 28. Rxf5 {[%clk 0:02:10]}  Rxg6+ {[%clk 0:01:36]} 29. Kh1 {[%clk 0:02:10]}  Bb7 {[%clk 0:01:29]} 30. Rd5 {[%clk 0:01:59]}  e3 {[%clk 0:01:24]} 31. Qf3 {[%clk 0:01:50]}  Rf8 {[%clk 0:01:11]} 32. Qe4 {[%clk 0:01:46]}  Bxd5 {[%clk 0:01:06]} 33. Qxd5+ {[%clk 0:01:47]}  Qf7 {[%clk 0:01:06]} 34. Qd3 {[%clk 0:01:41]}  Qf3# {[%clk 0:01:05]} 0-1


[Site "https://www.chess.com"]

[Event "Titled Tuesday Blitz July 25 Early 2023"]
[White "Pandey Srishti"]
[Black "Francisco_Ferrari"]
[WhiteFideId "35093290"]
[WhiteElo "2412"]
[BlackElo "2175"]
[Result "1-0"]
[Round "3"]
[TimeControl "180+2"]
[Date "2023.07.25"]
[WhiteClock "0:00:15"]
[BlackClock "0:00:02"]
[Board "227"]

1. e4 {[%clk 0:03:00]}  c5 {[%clk 0:03:00]} 2. Nf3 {[%clk 0:03:00]}  d6 {[%clk 0:03:01]} 3. d4 {[%clk 0:03:00]}  cxd4 {[%clk 0:03:02]} 4. Nxd4 {[%clk 0:03:01]}  Nf6 {[%clk 0:03:02]} 5. Nc3 {[%clk 0:03:01]}  a6 {[%clk 0:03:03]} 6. Bg5 {[%clk 0:02:54]}  e6 {[%clk 0:03:03]} 7. f4 {[%clk 0:02:54]}  Be7 {[%clk 0:03:03]} 8. Qf3 {[%clk 0:02:54]}  Qc7 {[%clk 0:03:04]} 9. O-O-O {[%clk 0:02:51]}  Nbd7 {[%clk 0:03:04]} 10. g4 {[%clk 0:02:49]}  b5 {[%clk 0:03:04]} 11. Kb1 {[%clk 0:02:45]}  Bb7 {[%clk 0:02:45]} 12. Bd3 {[%clk 0:02:44]}  Rc8 {[%clk 0:02:39]} 13. Rhe1 {[%clk 0:02:43]}  Nb6 {[%clk 0:02:11]} 14. Qe2 {[%clk 0:02:35]}  Nc4 {[%clk 0:02:07]} 15. Bxf6 {[%clk 0:02:21]}  Bxf6 {[%clk 0:02:02]} 16. Ndxb5 {[%clk 0:02:14]}  axb5 {[%clk 0:01:38]} 17. Nxb5 {[%clk 0:02:15]}  Na3+ {[%clk 0:01:26]} 18. bxa3 {[%clk 0:02:04]}  Qb6 {[%clk 0:01:17]} 19. Qe3 {[%clk 0:01:52]}  Rc5 {[%clk 0:01:05]} 20. c4 {[%clk 0:01:50]}  Bd4 {[%clk 0:00:54]} 21. Qd2 {[%clk 0:01:36]}  O-O {[%clk 0:00:36]} 22. Qb4 {[%clk 0:01:33]}  Bf2 {[%clk 0:00:16]} 23. Re2 {[%clk 0:01:29]}  Bh4 {[%clk 0:00:16]} 24. g5 {[%clk 0:01:10]}  d5 {[%clk 0:00:16]} 25. exd5 {[%clk 0:01:02]}  exd5 {[%clk 0:00:16]} 26. Re5 {[%clk 0:01:02]}  Rfc8 {[%clk 0:00:11]} 27. Nd4 {[%clk 0:00:49]}  Qd6 {[%clk 0:00:05]} 28. Nf5 {[%clk 0:00:48]}  Qb8 {[%clk 0:00:03]} 29. Nxh4 {[%clk 0:00:19]}  dxc4 {[%clk 0:00:02]} 30. Rxc5 {[%clk 0:00:15]}  Rxc5 {[%clk 0:00:02]} 31. Qxc5 {[%clk 0:00:15]}  cxd3 {[%clk 0:00:02]} 32. Qb4 {[%clk 0:00:15]} 1-0


[Site "https://www.chess.com"]

[Event "Titled Tuesday Blitz July 25 Early 2023"]
[White "Cardenas Carbajal, Nilson"]
[Black "Davidson, Kevin"]
[WhiteFideId "8401128"]
[BlackFideId "2056810"]
[WhiteElo "2151"]
[BlackElo "2407"]
[Result "1-0"]
[Round "3"]
[TimeControl "180+2"]
[Date "2023.07.25"]
[WhiteClock "0:02:10"]
[BlackClock "0:02:10"]
[Board "230"]

1. e4 {[%clk 0:03:00]}  c5 {[%clk 0:02:59]} 2. d4 {[%clk 0:03:00]}  cxd4 {[%clk 0:02:58]} 3. c3 {[%clk 0:03:00]}  dxc3 {[%clk 0:02:58]} 4. Nxc3 {[%clk 0:03:01]}  Nc6 {[%clk 0:02:59]} 5. Nf3 {[%clk 0:03:02]}  e6 {[%clk 0:02:59]} 6. Bc4 {[%clk 0:03:00]}  a6 {[%clk 0:03:00]} 7. O-O {[%clk 0:02:59]}  b5 {[%clk 0:03:00]} 8. Bb3 {[%clk 0:02:55]}  Na5 {[%clk 0:03:00]} 9. Re1 {[%clk 0:02:16]}  Nxb3 {[%clk 0:02:59]} 10. Qxb3 {[%clk 0:02:16]}  Ne7 {[%clk 0:02:41]} 11. Bg5 {[%clk 0:02:14]}  Bb7 {[%clk 0:02:10]} 12. a4 {[%clk 0:02:10]} 1-0


[Site "https://www.chess.com"]

[Event "Titled Tuesday Blitz July 25 Early 2023"]
[White "Gracia Alvarez, Gerardo Antonio"]
[Black "Kiseljova, Marya"]
[WhiteFideId "5109124"]
[BlackFideId "4155009"]
[WhiteElo "2406"]
[BlackElo "2135"]
[Result "1-0"]
[Round "3"]
[TimeControl "180+2"]
[Date "2023.07.25"]
[WhiteClock "0:01:12"]
[BlackClock "0:00:44"]
[Board "231"]

1. d4 {[%clk 0:03:00]}  d5 {[%clk 0:02:59]} 2. Bf4 {[%clk 0:03:00]}  Nf6 {[%clk 0:02:59]} 3. e3 {[%clk 0:03:01]}  c5 {[%clk 0:02:59]} 4. c3 {[%clk 0:03:00]}  Nc6 {[%clk 0:02:59]} 5. Nf3 {[%clk 0:03:00]}  e6 {[%clk 0:02:59]} 6. Nbd2 {[%clk 0:03:00]}  Nh5 {[%clk 0:02:58]} 7. Bg5 {[%clk 0:02:59]}  Qb6 {[%clk 0:02:54]} 8. Qb3 {[%clk 0:02:58]}  c4 {[%clk 0:02:53]} 9. Qc2 {[%clk 0:02:56]}  h6 {[%clk 0:02:43]} 10. Bh4 {[%clk 0:02:55]}  g5 {[%clk 0:02:43]} 11. Bg3 {[%clk 0:02:56]}  Nxg3 {[%clk 0:02:43]} 12. hxg3 {[%clk 0:02:56]}  Bg7 {[%clk 0:02:43]} 13. e4 {[%clk 0:02:54]}  Bd7 {[%clk 0:02:37]} 14. Be2 {[%clk 0:02:49]}  Qc7 {[%clk 0:02:24]} 15. O-O {[%clk 0:02:39]}  O-O {[%clk 0:02:16]} 16. Rfe1 {[%clk 0:02:39]}  b5 {[%clk 0:02:14]} 17. Bf1 {[%clk 0:02:38]}  a5 {[%clk 0:02:14]} 18. Nh2 {[%clk 0:02:13]}  b4 {[%clk 0:01:54]} 19. Ng4 {[%clk 0:02:13]}  h5 {[%clk 0:01:48]} 20. Ne3 {[%clk 0:02:12]}  Qd6 {[%clk 0:01:39]} 21. Qd1 {[%clk 0:01:55]}  g4 {[%clk 0:01:37]} 22. Bxc4 {[%clk 0:01:42]}  dxc4 {[%clk 0:01:33]} 23. Ndxc4 {[%clk 0:01:43]}  Qc7 {[%clk 0:01:32]} 24. e5 {[%clk 0:01:37]}  Ne7 {[%clk 0:01:29]} 25. Nd6 {[%clk 0:01:35]}  Nf5 {[%clk 0:01:26]} 26. Ndxf5 {[%clk 0:01:29]}  exf5 {[%clk 0:01:26]} 27. Nd5 {[%clk 0:01:28]}  Qb7 {[%clk 0:01:23]} 28. c4 {[%clk 0:01:27]}  Be6 {[%clk 0:01:18]} 29. Nf6+ {[%clk 0:01:17]}  Bxf6 {[%clk 0:01:17]} 30. exf6 {[%clk 0:01:18]}  Bxc4 {[%clk 0:01:15]} 31. Qc1 {[%clk 0:01:18]}  Kh7 {[%clk 0:01:04]} 32. Qg5 {[%clk 0:01:13]}  Rh8 {[%clk 0:00:44]} 33. Qg7# {[%clk 0:01:12]} 1-0


[Site "https://www.chess.com"]

[Event "Titled Tuesday Blitz July 25 Early 2023"]
[White "Jahnz, Fabian"]
[Black "Iljin, Timofey"]
[WhiteFideId "4653300"]
[BlackFideId "14110180"]
[WhiteElo "2131"]
[BlackElo "2403"]
[Result "1-0"]
[Round "3"]
[TimeControl "180+2"]
[Date "2023.07.25"]
[WhiteClock "0:00:30"]
[BlackClock "0:00:11"]
[Board "232"]

1. e4 {[%clk 0:03:00]}  e5 {[%clk 0:02:58]} 2. Nf3 {[%clk 0:02:56]}  Nc6 {[%clk 0:02:58]} 3. Bc4 {[%clk 0:02:56]}  Nf6 {[%clk 0:02:58]} 4. d3 {[%clk 0:02:56]}  d5 {[%clk 0:02:59]} 5. exd5 {[%clk 0:02:54]}  Nxd5 {[%clk 0:03:00]} 6. O-O {[%clk 0:02:53]}  Bc5 {[%clk 0:03:00]} 7. Nc3 {[%clk 0:02:52]}  Be6 {[%clk 0:03:00]} 8. Nxd5 {[%clk 0:02:51]}  Bxd5 {[%clk 0:03:01]} 9. Bxd5 {[%clk 0:02:50]}  Qxd5 {[%clk 0:03:02]} 10. Re1 {[%clk 0:02:49]}  O-O-O {[%clk 0:03:02]} 11. Be3 {[%clk 0:02:47]}  f6 {[%clk 0:03:02]} 12. Bxc5 {[%clk 0:02:47]}  Qxc5 {[%clk 0:03:03]} 13. a3 {[%clk 0:02:46]}  Rhe8 {[%clk 0:03:03]} 14. b4 {[%clk 0:02:44]}  Qd5 {[%clk 0:03:03]} 15. Qe2 {[%clk 0:02:39]}  g5 {[%clk 0:03:03]} 16. Qe4 {[%clk 0:02:37]}  Qd7 {[%clk 0:03:01]} 17. b5 {[%clk 0:02:35]}  Ne7 {[%clk 0:02:54]} 18. Qxh7 {[%clk 0:02:22]}  Qxb5 {[%clk 0:02:39]} 19. Rab1 {[%clk 0:02:16]}  Qc6 {[%clk 0:02:38]} 20. Qe4 {[%clk 0:02:14]}  Qa6 {[%clk 0:02:18]} 21. Rb3 {[%clk 0:02:04]}  Nd5 {[%clk 0:02:12]} 22. Reb1 {[%clk 0:02:00]}  b6 {[%clk 0:02:13]} 23. c4 {[%clk 0:01:57]}  Nf4 {[%clk 0:02:07]} 24. Qa8+ {[%clk 0:01:55]}  Kd7 {[%clk 0:02:07]} 25. Qe4 {[%clk 0:01:54]}  Ke6 {[%clk 0:01:57]} 26. Qc6+ {[%clk 0:01:49]}  Kf7 {[%clk 0:01:42]} 27. Qxc7+ {[%clk 0:01:49]}  Kg6 {[%clk 0:01:42]} 28. Qc6 {[%clk 0:01:27]}  Re6 {[%clk 0:01:29]} 29. Qe4+ {[%clk 0:01:24]}  f5 {[%clk 0:01:29]} 30. Qe3 {[%clk 0:01:22]}  e4 {[%clk 0:01:14]} 31. Nxg5 {[%clk 0:01:13]}  Kxg5 {[%clk 0:00:59]} 32. g3 {[%clk 0:01:09]}  exd3 {[%clk 0:00:52]} 33. Qxf4+ {[%clk 0:01:09]}  Kg6 {[%clk 0:00:51]} 34. Rb5 {[%clk 0:01:03]}  Rf6 {[%clk 0:00:39]} 35. h4 {[%clk 0:00:39]}  d2 {[%clk 0:00:26]} 36. Rd1 {[%clk 0:00:39]}  Qxa3 {[%clk 0:00:26]} 37. Qg5+ {[%clk 0:00:36]}  Kf7 {[%clk 0:00:24]} 38. Rxf5 {[%clk 0:00:33]}  Qc3 {[%clk 0:00:17]} 39. Qh5+ {[%clk 0:00:29]}  Ke6 {[%clk 0:00:15]} 40. Rxf6+ {[%clk 0:00:29]}  Kxf6 {[%clk 0:00:10]} 41. Qg5+ {[%clk 0:00:29]}  Kf7 {[%clk 0:00:09]} 42. Qxd8 {[%clk 0:00:29]}  a5 {[%clk 0:00:10]} 43. Qxd2 {[%clk 0:00:29]}  a4 {[%clk 0:00:11]} 44. Qxc3 {[%clk 0:00:30]}  a3 {[%clk 0:00:11]} 45. Qxa3 {[%clk 0:00:30]}  b5 {[%clk 0:00:11]} 46. Qb4 {[%clk 0:00:30]} 1-0


[Site "https://www.chess.com"]

[Event "Titled Tuesday Blitz July 25 Early 2023"]
[White "Yashmetov, Mikhail"]
[Black "Lisjak, Zlatko"]
[WhiteFideId "24198900"]
[BlackFideId "14502186"]
[WhiteElo "2401"]
[BlackElo "2127"]
[Result "1-0"]
[Round "3"]
[TimeControl "180+2"]
[Date "2023.07.25"]
[WhiteClock "0:00:22"]
[BlackClock "0:00:01"]
[Board "233"]

1. d4 {[%clk 0:03:00]}  d6 {[%clk 0:02:58]} 2. Nf3 {[%clk 0:03:00]}  Bg4 {[%clk 0:02:56]} 3. e4 {[%clk 0:02:57]}  Nf6 {[%clk 0:02:52]} 4. Nc3 {[%clk 0:02:57]}  c6 {[%clk 0:02:52]} 5. Bd3 {[%clk 0:02:56]}  e6 {[%clk 0:02:49]} 6. O-O {[%clk 0:02:55]}  d5 {[%clk 0:02:42]} 7. e5 {[%clk 0:02:54]}  Nfd7 {[%clk 0:02:41]} 8. h3 {[%clk 0:02:54]}  Bh5 {[%clk 0:02:40]} 9. g4 {[%clk 0:02:50]}  Bg6 {[%clk 0:02:39]} 10. h4 {[%clk 0:02:42]}  Bxd3 {[%clk 0:02:30]} 11. Qxd3 {[%clk 0:02:43]}  c5 {[%clk 0:02:29]} 12. Bg5 {[%clk 0:02:30]}  Be7 {[%clk 0:02:25]} 13. Qb5 {[%clk 0:02:15]}  b6 {[%clk 0:02:16]} 14. dxc5 {[%clk 0:02:01]}  a6 {[%clk 0:01:59]} 15. Qa4 {[%clk 0:01:49]}  b5 {[%clk 0:01:36]} 16. Nxb5 {[%clk 0:01:33]}  O-O {[%clk 0:01:13]} 17. b4 {[%clk 0:01:08]}  Bxg5 {[%clk 0:00:59]} 18. Nxg5 {[%clk 0:01:03]}  h6 {[%clk 0:00:51]} 19. Nf3 {[%clk 0:01:03]}  Nc6 {[%clk 0:00:51]} 20. Nd6 {[%clk 0:00:55]}  Ncxe5 {[%clk 0:00:48]} 21. Nxe5 {[%clk 0:00:53]}  Nxe5 {[%clk 0:00:44]} 22. b5 {[%clk 0:00:43]}  Qxh4 {[%clk 0:00:36]} 23. Qf4 {[%clk 0:00:37]}  Nxg4 {[%clk 0:00:13]} 24. b6 {[%clk 0:00:34]}  e5 {[%clk 0:00:13]} 25. Qg3 {[%clk 0:00:32]}  Qh5 {[%clk 0:00:13]} 26. c6 {[%clk 0:00:27]}  Rab8 {[%clk 0:00:11]} 27. b7 {[%clk 0:00:27]}  f5 {[%clk 0:00:08]} 28. c7 {[%clk 0:00:25]}  f4 {[%clk 0:00:09]} 29. Qg2 {[%clk 0:00:23]}  f3 {[%clk 0:00:09]} 30. Qg3 {[%clk 0:00:23]}  e4 {[%clk 0:00:03]} 31. c8=Q {[%clk 0:00:20]}  Rbxc8 {[%clk 0:00:02]} 32. bxc8=Q {[%clk 0:00:21]}  Rxc8 {[%clk 0:00:01]} 33. Nxc8 {[%clk 0:00:22]} 1-0


[Site "https://www.chess.com"]

[Event "Titled Tuesday Blitz July 25 Early 2023"]
[White "Dahlgren, James Allen"]
[Black "Marn, Jan"]
[WhiteFideId "22256873"]
[BlackFideId "14619245"]
[WhiteElo "2112"]
[BlackElo "2398"]
[Result "0-1"]
[Round "3"]
[TimeControl "180+2"]
[Date "2023.07.25"]
[WhiteClock "0:00:39"]
[BlackClock "0:00:17"]
[Board "235"]

1. d3 {[%clk 0:03:00]}  e5 {[%clk 0:02:57]} 2. f4 {[%clk 0:03:01]}  exf4 {[%clk 0:02:31]} 3. Bxf4 {[%clk 0:03:02]}  d5 {[%clk 0:02:31]} 4. Nd2 {[%clk 0:02:59]}  Nf6 {[%clk 0:02:30]} 5. e4 {[%clk 0:02:59]}  dxe4 {[%clk 0:02:31]} 6. dxe4 {[%clk 0:03:00]}  Be7 {[%clk 0:02:21]} 7. Ngf3 {[%clk 0:03:00]}  O-O {[%clk 0:02:21]} 8. Bd3 {[%clk 0:03:00]}  Nc6 {[%clk 0:02:20]} 9. O-O {[%clk 0:03:00]}  Be6 {[%clk 0:02:13]} 10. e5 {[%clk 0:02:58]}  Nd5 {[%clk 0:02:10]} 11. g3 {[%clk 0:02:48]}  g5 {[%clk 0:02:01]} 12. Nxg5 {[%clk 0:02:36]}  Bxg5 {[%clk 0:01:57]} 13. Bxh7+ {[%clk 0:02:29]}  Kg7 {[%clk 0:01:29]} 14. Qh5 {[%clk 0:02:22]}  Nxf4 {[%clk 0:01:28]} 15. gxf4 {[%clk 0:02:20]}  Qd4+ {[%clk 0:01:21]} 16. Rf2 {[%clk 0:02:08]}  Bxf4 {[%clk 0:01:09]} 17. Nf3 {[%clk 0:02:00]}  Qb6 {[%clk 0:00:38]} 18. Kh1 {[%clk 0:01:47]}  Qxf2 {[%clk 0:00:37]} 19. Rg1+ {[%clk 0:01:46]}  Qxg1+ {[%clk 0:00:38]} 20. Kxg1 {[%clk 0:01:40]}  Rh8 {[%clk 0:00:38]} 21. Ng5 {[%clk 0:01:24]}  Bxg5 {[%clk 0:00:36]} 22. Qxg5+ {[%clk 0:01:25]}  Kxh7 {[%clk 0:00:36]} 23. Kf2 {[%clk 0:01:14]}  Rag8 {[%clk 0:00:20]} 24. Qf6 {[%clk 0:01:14]}  Rg6 {[%clk 0:00:18]} 25. Qf4 {[%clk 0:01:00]}  Kg7 {[%clk 0:00:19]} 26. c3 {[%clk 0:00:55]}  Rh5 {[%clk 0:00:18]} 27. Ke3 {[%clk 0:00:48]}  Rxe5+ {[%clk 0:00:18]} 28. Kd2 {[%clk 0:00:47]}  Rg2+ {[%clk 0:00:16]} 29. Kd3 {[%clk 0:00:43]}  Rd5+ {[%clk 0:00:17]} 30. Ke3 {[%clk 0:00:40]}  Re5+ {[%clk 0:00:15]} 31. Kd3 {[%clk 0:00:40]}  Bf5+ {[%clk 0:00:15]} 32. Kc4 {[%clk 0:00:40]}  Re4+ {[%clk 0:00:16]} 33. Qxe4 {[%clk 0:00:39]}  Bxe4 {[%clk 0:00:17]} 0-1


[Site "https://www.chess.com"]

[Event "Titled Tuesday Blitz July 25 Early 2023"]
[White "Abdi, Farzad"]
[Black "Xie, Bryan"]
[WhiteFideId "2076829"]
[BlackFideId "30941296"]
[WhiteElo "2107"]
[BlackElo "2397"]
[Result "0-1"]
[Round "3"]
[TimeControl "180+2"]
[Date "2023.07.25"]
[WhiteClock "0:00:52"]
[BlackClock "0:00:49"]
[Board "236"]

1. d4 {[%clk 0:03:00]}  Nf6 {[%clk 0:02:58]} 2. c4 {[%clk 0:03:00]}  e6 {[%clk 0:02:58]} 3. Nf3 {[%clk 0:02:59]}  b6 {[%clk 0:02:57]} 4. Nc3 {[%clk 0:02:57]}  Bb4 {[%clk 0:02:56]} 5. e3 {[%clk 0:02:55]}  Bb7 {[%clk 0:02:54]} 6. Bd3 {[%clk 0:02:56]}  O-O {[%clk 0:02:51]} 7. O-O {[%clk 0:02:56]}  c5 {[%clk 0:02:51]} 8. a3 {[%clk 0:02:52]}  Bxc3 {[%clk 0:02:50]} 9. bxc3 {[%clk 0:02:53]}  d6 {[%clk 0:02:48]} 10. Re1 {[%clk 0:02:51]}  Nc6 {[%clk 0:02:48]} 11. e4 {[%clk 0:02:51]}  e5 {[%clk 0:02:45]} 12. d5 {[%clk 0:02:50]}  Na5 {[%clk 0:02:44]} 13. Bg5 {[%clk 0:02:49]}  Ba6 {[%clk 0:02:44]} 14. Qe2 {[%clk 0:02:49]}  h6 {[%clk 0:02:19]} 15. Bh4 {[%clk 0:02:46]}  g5 {[%clk 0:02:20]} 16. Bg3 {[%clk 0:02:37]}  Nh5 {[%clk 0:02:11]} 17. Nd2 {[%clk 0:02:17]}  Nxg3 {[%clk 0:02:04]} 18. hxg3 {[%clk 0:01:56]}  Qd7 {[%clk 0:02:03]} 19. g4 {[%clk 0:01:54]}  Qa4 {[%clk 0:01:53]} 20. g3 {[%clk 0:01:51]}  Kg7 {[%clk 0:01:52]} 21. Kg2 {[%clk 0:01:51]}  Rab8 {[%clk 0:01:37]} 22. f4 {[%clk 0:01:45]}  f6 {[%clk 0:01:22]} 23. Rh1 {[%clk 0:01:41]}  b5 {[%clk 0:01:14]} 24. cxb5 {[%clk 0:01:17]}  Bxb5 {[%clk 0:01:15]} 25. Bxb5 {[%clk 0:01:14]}  Rxb5 {[%clk 0:01:14]} 26. Rh5 {[%clk 0:01:07]}  Rb2 {[%clk 0:01:07]} 27. Rah1 {[%clk 0:01:04]}  Nc4 {[%clk 0:00:51]} 28. Rxh6 {[%clk 0:00:53]}  Rxd2 {[%clk 0:00:49]} 29. Rh7+ {[%clk 0:00:52]}  Kg8 {[%clk 0:00:49]} 0-1


[Site "https://www.chess.com"]

[Event "Titled Tuesday Blitz July 25 Early 2023"]
[White "Ramirez Vido, Robert Yorisan"]
[Black "Floresvillar Gonzalez, Luis Migu"]
[WhiteFideId "3513823"]
[BlackFideId "5100542"]
[WhiteElo "2397"]
[BlackElo "2103"]
[Result "1-0"]
[Round "3"]
[TimeControl "180+2"]
[Date "2023.07.25"]
[WhiteClock "0:01:25"]
[BlackClock "0:00:42"]
[Board "237"]

1. Nf3 {[%clk 0:02:57]}  d5 {[%clk 0:02:59]} 2. g3 {[%clk 0:02:56]}  c6 {[%clk 0:02:58]} 3. Bg2 {[%clk 0:02:57]}  Bg4 {[%clk 0:02:59]} 4. O-O {[%clk 0:02:58]}  h5 {[%clk 0:02:58]} 5. c4 {[%clk 0:02:56]}  e6 {[%clk 0:02:57]} 6. Qa4 {[%clk 0:02:52]}  Nd7 {[%clk 0:02:46]} 7. Nc3 {[%clk 0:02:50]}  Ngf6 {[%clk 0:02:43]} 8. cxd5 {[%clk 0:02:50]}  cxd5 {[%clk 0:02:32]} 9. Ne5 {[%clk 0:02:46]}  Bd6 {[%clk 0:02:28]} 10. Nxd7 {[%clk 0:02:39]}  Qxd7 {[%clk 0:02:26]} 11. Qxd7+ {[%clk 0:02:30]}  Kxd7 {[%clk 0:02:24]} 12. d3 {[%clk 0:02:25]}  a6 {[%clk 0:02:21]} 13. h3 {[%clk 0:02:22]}  Bf5 {[%clk 0:02:20]} 14. e4 {[%clk 0:02:23]}  d4 {[%clk 0:02:05]} 15. Ne2 {[%clk 0:02:03]}  Bg6 {[%clk 0:02:01]} 16. Nxd4 {[%clk 0:02:03]}  Be5 {[%clk 0:01:59]} 17. Be3 {[%clk 0:02:02]}  Rac8 {[%clk 0:01:57]} 18. f4 {[%clk 0:01:59]}  Bxd4 {[%clk 0:01:53]} 19. Bxd4 {[%clk 0:02:00]}  Rc2 {[%clk 0:01:53]} 20. Rf2 {[%clk 0:02:00]}  Rhc8 {[%clk 0:01:51]} 21. Bc3 {[%clk 0:01:57]}  R8xc3 {[%clk 0:01:43]} 22. bxc3 {[%clk 0:01:56]}  Rxc3 {[%clk 0:01:43]} 23. Rb1 {[%clk 0:01:46]}  Rxd3 {[%clk 0:01:33]} 24. Rxb7+ {[%clk 0:01:45]}  Kc8 {[%clk 0:01:31]} 25. e5 {[%clk 0:01:39]}  Rxg3 {[%clk 0:01:20]} 26. exf6 {[%clk 0:01:33]}  gxf6 {[%clk 0:01:13]} 27. Rb3 {[%clk 0:01:27]}  h4 {[%clk 0:00:46]} 28. Rxg3 {[%clk 0:01:26]}  hxg3 {[%clk 0:00:46]} 29. Rf3 {[%clk 0:01:26]}  Bb1 {[%clk 0:00:42]} 30. a3 {[%clk 0:01:25]} 1-0


[Site "https://www.chess.com"]

[Event "Titled Tuesday Blitz July 25 Early 2023"]
[White "Guevara Sanchez, Erick Marvin"]
[Black "Stork, Oliver"]
[WhiteFideId "6700136"]
[BlackFideId "12955728"]
[WhiteElo "2091"]
[BlackElo "2395"]
[Result "1/2-1/2"]
[Round "3"]
[TimeControl "180+2"]
[Date "2023.07.25"]
[WhiteClock "0:00:29"]
[BlackClock "0:00:29"]
[Board "239"]

1. e4 {[%clk 0:03:00]}  c5 {[%clk 0:02:59]} 2. d4 {[%clk 0:03:00]}  cxd4 {[%clk 0:02:59]} 3. c3 {[%clk 0:03:00]}  dxc3 {[%clk 0:02:59]} 4. Nxc3 {[%clk 0:03:00]}  e6 {[%clk 0:02:59]} 5. Nf3 {[%clk 0:02:59]}  Nc6 {[%clk 0:02:59]} 6. Bc4 {[%clk 0:02:58]}  Bb4 {[%clk 0:02:59]} 7. O-O {[%clk 0:02:59]}  Nge7 {[%clk 0:02:58]} 8. Nd5 {[%clk 0:02:54]}  O-O {[%clk 0:02:48]} 9. Nxb4 {[%clk 0:02:53]}  Nxb4 {[%clk 0:02:47]} 10. Qd6 {[%clk 0:02:51]}  Nbc6 {[%clk 0:02:45]} 11. Bg5 {[%clk 0:02:38]}  f6 {[%clk 0:02:40]} 12. Be3 {[%clk 0:02:31]}  Qe8 {[%clk 0:02:30]} 13. b4 {[%clk 0:02:20]}  f5 {[%clk 0:02:17]} 14. e5 {[%clk 0:02:10]}  f4 {[%clk 0:02:15]} 15. Bc5 {[%clk 0:02:02]}  b6 {[%clk 0:02:11]} 16. b5 {[%clk 0:01:58]}  bxc5 {[%clk 0:02:02]} 17. bxc6 {[%clk 0:01:56]}  Nxc6 {[%clk 0:01:59]} 18. Qxc5 {[%clk 0:01:54]}  Ne7 {[%clk 0:01:37]} 19. Rab1 {[%clk 0:01:49]}  Nf5 {[%clk 0:01:31]} 20. Rfd1 {[%clk 0:01:44]}  Qg6 {[%clk 0:01:21]} 21. Qc7 {[%clk 0:01:27]}  a5 {[%clk 0:01:14]} 22. a4 {[%clk 0:01:21]}  h5 {[%clk 0:01:04]} 23. h4 {[%clk 0:01:19]}  Qg4 {[%clk 0:01:03]} 24. Rxd7 {[%clk 0:01:06]}  Bxd7 {[%clk 0:01:01]} 25. Qxd7 {[%clk 0:01:07]}  Rad8 {[%clk 0:00:53]} 26. Qxe6+ {[%clk 0:01:05]}  Kh8 {[%clk 0:00:54]} 27. Ng5 {[%clk 0:01:05]}  Rd1+ {[%clk 0:00:41]} 28. Rxd1 {[%clk 0:01:02]}  Qxd1+ {[%clk 0:00:42]} 29. Kh2 {[%clk 0:01:02]}  Qg4 {[%clk 0:00:42]} 30. Qg6 {[%clk 0:00:49]}  Qxg2+ {[%clk 0:00:39]} 31. Kxg2 {[%clk 0:00:47]}  Nxh4+ {[%clk 0:00:40]} 32. Kh3 {[%clk 0:00:45]}  Nxg6 {[%clk 0:00:40]} 33. e6 {[%clk 0:00:44]}  Re8 {[%clk 0:00:29]} 34. Nf7+ {[%clk 0:00:36]}  Kh7 {[%clk 0:00:26]} 35. Ng5+ {[%clk 0:00:35]}  Kh6 {[%clk 0:00:26]} 36. Nf7+ {[%clk 0:00:34]}  Kh7 {[%clk 0:00:26]} 37. Ng5+ {[%clk 0:00:34]}  Kg8 {[%clk 0:00:27]} 38. e7+ {[%clk 0:00:33]}  Kh8 {[%clk 0:00:26]} 39. Nf7+ {[%clk 0:00:33]}  Kh7 {[%clk 0:00:27]} 40. Ng5+ {[%clk 0:00:33]}  Kh6 {[%clk 0:00:27]} 41. Nf7+ {[%clk 0:00:33]}  Kh7 {[%clk 0:00:28]} 42. Ng5+ {[%clk 0:00:32]}  Kh8 {[%clk 0:00:28]} 43. Nf7+ {[%clk 0:00:29]}  Kh7 {[%clk 0:00:29]} 1/2-1/2


[Site "https://www.chess.com"]